[Event "German Bundesliga 2022-23"]
[Site "Germany"]
[Date "2022.10.23"]
[Round "2.12"]
[White "Meier, Georg"]
[Black "Stojanovic, Dalibor"]
[Result "1/2-1/2"]
[ECO "A49"]
[WhiteElo "2613"]
[BlackElo "2472"]
[Annotator "TA"]
[PlyCount "157"]
[EventDate "2022.10.21"]
[EventType "team-tourn"]
[EventCountry "GER"]
[SourceTitle "playchess.com"]
[Source "ChessBase"]
[SourceQuality "1"]
[TimeControl "40/6000+30:3000+30"]

{[%evp 19,157,36,24,37,29,20,21,27,30,-5,22,22,27,27,33,40,28,20,52,57,64,56,93,95,89,67,110,107,112,122,231,231,219,148,243,116,331,329,328,322,331,270,226,167,243,169,171,31,41,34,46,74,99,4,1,18,135,122,200,245,266,262,274,274,290,274,279,283,435,435,435,0,0,0,0,0,0,0,0,0,0,0,0,0,0,0,0,0,0,0,0,0,0,0,0,0,0,0,0,0,0,0,184,0,198,0,0,0,0,0,0,0,0,0,0,0,0,0,0,0,0,0,0,0,0,0,0,0,0,0,0,0,0,0,0,0,0,0,0,0]} 1. Nf3 {[%emt 0:00:04]} Nf6 {[%emt 0:00:10]} 2. g3 {[%emt 0:00:21]} g6 {[%emt 0:01:04]} 3. Bg2 {[%emt 0:00:05]} Bg7 {[%emt 0:00:05]} 4. O-O {[%emt 0:00:06]} O-O {[%emt 0:00:15]} 5. d4 {[%emt 0:00:03]} d6 {[%emt 0:01:24]} 6. b3 {[%emt 0:00:07]} a5 {[%emt 0:02:30]} 7. c4 {[%emt 0:00:37]} a4 {[%emt 0:02:02]} 8. b4 {[%emt 0:00:11]} e5 {[%emt 0:10:51]} 9. Nc3 {[%emt 0:34:00]} Nc6 {[%emt 0:15:34]} 10. dxe5 $1 {[%emt 0:07:36]} dxe5 {[%emt 0:02:03]} 11. b5 {[%emt 0:01:59]} Nd4 {[%emt 0:03:17]} 12. Ba3 {[%emt 0:14:11]} Re8 $1 {[%emt 0:01:24]} 13. Rc1 {[%emt 0:00:49]} Bg4 {[%emt 0:03:26]} 14. Re1 {[%emt 0:08:14]} Bh6 {[%emt 0:23:34]} (14... c6 {is interesting.} 15. Bc5 Bh6 16. e3 Bxf3 17. Bxf3 Nxf3+ 18. Qxf3 e4) 15. e3 {[%emt 0:03:26]} Nxf3+ {[%emt 0:01:25]} (15... e4 {seems wilder.} 16. Qxd4 Bxf3 17. Nd5 Nxd5 18. cxd5 Bg7) 16. Bxf3 {[%emt 0:00:06]} Bxf3 {[%emt 0:00:02]} 17. Qxf3 {[%emt 0:00:08]} e4 {[%emt 0:00:03]} 18. Qd1 {[%emt 0:05:29]} Bg7 {[%emt 0:15:52]} 19. Qxd8 $1 {[%emt 0:03:27]} Raxd8 {[%emt 0:01:20]} 20. Red1 $1 {[%emt 0:00:02]} c6 {[%emt 0:04:46]} 21. Rxd8 {[%emt 0:00:38]} (21. Nxa4 $2 Ra8 22. Nc5 Rxa3 $17) 21... Rxd8 {[%emt 0:00:08]} 22. Be7 {[%emt 0:00:17]} (22. Nxa4 $2 Ra8 23. Rd1 h5 $19) 22... Rc8 {[%emt 0:11:25]} 23. Rd1 {[%emt 0:22:47]} cxb5 {[%emt 0:02:28]} 24. cxb5 {[%emt 0:00:07]} Ne8 {[%emt 0:01:45]} (24... a3 $16) 25. Nxa4 $18 {[%emt 0:04:15]} (25. Nxe4 $6 f5 $16) 25... f5 {[%emt 0:01:17]} 26. Bb4 {[%emt 0:03:18]} Nf6 {[%emt 0:01:41]} (26... Bf6 $16 27. Kg2 Rd8 28. Rxd8 Bxd8) 27. h3 {[%emt 0:00:14]} (27. Nb6 $18 Rc7 28. a4) 27... Bf8 $2 {[%emt 0:01:49]} (27... Ra8 $16) 28. Nb6 $1 $18 {[%emt 0:01:12]} Re8 {[%emt 0:00:02]} 29. Bc3 {[%emt 0:00:24]} Kf7 {[%emt 0:00:57]} 30. a4 {[%emt 0:00:23]} Bc5 {[%emt 0:00:16]} 31. Nc4 {[%emt 0:00:51]} Rc8 {[%emt 0:00:54]} (31... Ke6 $142 32. Na5 b6) 32. Bxf6 {[%emt 0:00:26]} ({Resist} 32. Rd6 $6 Ne8 33. Ne5+ (33. Rd7+ Ke6 $11) 33... Kg8) 32... Kxf6 {[%emt 0:00:03] [#]} 33. Rd7 {[%emt 0:00:08]} (33. Nb6 $1 $18 {[%cal Rb6c8][%mdl 512]} Bxb6 34. Rd6+ Ke5 35. Rxb6) 33... Bb4 $14 {[%emt 0:00:37]} 34. Nb6 {[%emt 0:00:31]} Rc1+ {[%emt 0:00:04]} 35. Kg2 {[%emt 0:00:06]} Be1 {[%emt 0:00:02]} 36. a5 {[%emt 0:01:15]} (36. Rxb7 $16 {Nd5+ is the strong threat.} Rc2 37. Kf1 (37. Rxh7 Bxf2 38. Rc7 Ra2 $16) 37... Bxf2 38. Rxh7) 36... Bxa5 $11 {[%emt 0:01:43]} 37. Rxb7 {[%emt 0:00:01]} Bxb6 {[%emt 0:01:11]} (37... Rc2 $11) 38. Rxb6+ $16 {[%emt 0:00:08]} Kg5 {[%emt 0:00:12]} (38... Ke5 $16 {is a better defense.} 39. Rb7 Rb1) 39. Rb7 $18 {[%emt 0:01:23]} h5 {[%emt 0:00:35]} 40. b6 {[%emt 0:00:16]} Rb1 {[%emt 0:00:57]} 41. Rb8 {[%emt 0:50:44]} Kh6 {[%emt 0:05:53]} 42. b7 {[%emt 0:00:00]} Kg7 {[%emt 0:02:24]} 43. g4 $1 {[%emt 0:00:00]} h4 {[%emt 0:00:05]} (43... hxg4 $142 44. hxg4 Kh7) 44. gxf5 $18 {[%emt 0:00:00]} gxf5 {[%emt 0:00:06] [#]} 45. f4 $2 {[%emt 0:00:00]} (45. Kh2 $1 $18) 45... exf3+ $1 $11 {[%emt 0:04:29]} 46. Kxf3 {[%emt 0:00:00]} (46. Kf2 $5 {[%cal Rf2f3]} Rb6 47. Kxf3 $18) 46... Rb4 {[%emt 0:00:04]} 47. Ke2 {[%emt 0:00:00]} (47. e4 $5 fxe4+ 48. Kf4 $11) 47... Rb3 {[%emt 0:00:49]} 48. Kd2 {[%emt 0:00:00]} Kh7 {[%emt 0:00:16]} 49. Kc2 {[%emt 0:00:00]} Rb6 {[%emt 0:00:20]} 50. Kc3 {[%emt 0:00:00]} Kg7 {[%emt 0:00:08]} 51. Kd4 {[%emt 0:00:00]} Rb3 {[%emt 0:00:07]} 52. Kd5 {[%emt 0:00:00]} Kh7 $1 {[%emt 0:00:16]} 53. Kc4 {[%emt 0:00:00]} Rb1 {[%emt 0:00:22]} 54. Kd3 {[%emt 0:00:00]} Kg7 {[%emt 0:00:32]} 55. Ke2 {[%emt 0:00:00]} Rb2+ {[%emt 0:00:38]} 56. Kd1 {[%emt 0:00:00]} Kh7 {[%emt 0:00:56]} 57. Kc1 {[%emt 0:00:00]} Rb6 {[%emt 0:00:04]} 58. Kc2 {[%emt 0:00:00]} Kg7 {[%emt 0:00:10]} 59. Kc3 {[%emt 0:00:00]} Rb1 {[%emt 0:00:18]} 60. Kd4 $2 {[%emt 0:00:00]} (60. Kd3 $11 Rb5 61. Kc4) 60... Rb3 $18 {[%emt 0:00:06]} 61. Kd5 {[%emt 0:00:00]} Kh7 $1 {[%emt 0:00:26]} 62. Rf8 $2 {[%emt 0:00:00]} (62. Kc6 $18 {White wants to mate with Rc8.} Rc3+ 63. Kd6 Rd3+ 64. Kc7 Rc3+ 65. Kd7) 62... Rxb7 $11 {[%emt 0:02:13]} 63. Rxf5 {[%emt 0:00:00]} (63. Rf6 $5 {[%cal Rf6f5]}) 63... Kg6 {[%emt 0:00:33]} 64. Rf4 {[%emt 0:00:00]} Kg5 {[%emt 0:01:44]} 65. Ke4 {[%emt 0:00:00]} Rb4+ {[%emt 0:04:24]} 66. Kf3 {[%emt 0:00:00]} Rb1 {[%emt 0:01:29]} 67. Kg2 {[%emt 0:00:00]} Rb2+ {[%emt 0:02:54]} 68. Rf2 {[%emt 0:00:00]} Rb3 {[%emt 0:05:57]} 69. Kf3 {[%emt 0:00:00]} Rb1 {[%emt 0:01:18]} 70. Ra2 {[%emt 0:00:00]} Rf1+ {[%emt 0:00:07]} 71. Kg2 {[%emt 0:00:00]} Re1 {[%emt 0:00:03]} 72. Ra5+ {[%emt 0:00:00]} Kf6 {[%emt 0:01:32]} 73. Ra3 {[%emt 0:00:00]} Ke5 {[%emt 0:06:52]} 74. Rd3 {[%emt 0:00:00]} Kf5 {[%emt 0:00:48]} 75. Kf3 {[%emt 0:00:00]} Rg1 {[%emt 0:00:14]} 76. e4+ {[%emt 0:00:00]} Ke5 {[%emt 0:00:07]} 77. Rd5+ {[%emt 0:00:00]} (77. Kf2 $5 {[%cal Rf2g1]} Kxe4 78. Kxg1 Kxd3 79. Kh2 $11) 77... Ke6 {[%emt 0:00:03]} 78. Rd3 {[%emt 0:00:00]} Ke5 {[%emt 0:00:09]} 79. Rd5+ {[%emt 0:00:06]} 1/2-1/2

[Event "German Bundesliga 2022-23"]
[Site "Germany"]
[Date "2022.10.23"]
[Round "2.12"]
[White "Warmerdam, Max"]
[Black "Van Foreest, Lucas"]
[Result "1/2-1/2"]
[ECO "D37"]
[WhiteElo "2612"]
[BlackElo "2568"]
[Annotator "TA"]
[PlyCount "54"]
[EventDate "2022.10.21"]
[EventType "team-tourn"]
[EventCountry "GER"]
[SourceTitle "playchess.com"]
[Source "ChessBase"]
[SourceQuality "1"]
[TimeControl "40/6000+30:3000+30"]

{[%evp 19,54,11,16,0,39,39,39,25,41,27,42,16,14,8,8,8,8,8,12,11,15,6,9,0,0,0,0,0,0,0,0,0,0,0,0,-2,0]} 1. d4 {[%emt 0:00:04]} d5 {[%emt 0:00:18]} 2. c4 {[%emt 0:00:06]} e6 {[%emt 0:00:20]} 3. Nf3 {[%emt 0:00:06]} Nf6 {[%emt 0:00:07]} 4. Nc3 {[%emt 0:00:06]} Be7 {[%emt 0:00:25]} 5. Bf4 {[%emt 0:02:42]} O-O {[%emt 0:00:31]} 6. e3 {[%emt 0:00:05]} c5 {[%emt 0:00:10]} 7. dxc5 {[%emt 0:13:43]} Bxc5 {[%emt 0:00:05]} 8. a3 {[%emt 0:04:05]} Nc6 {[%emt 0:00:06]} 9. cxd5 {[%emt 0:02:11]} Nxd5 {[%emt 0:02:08]} 10. Nxd5 {[%emt 0:00:29]} exd5 {[%emt 0:00:04]} 11. Rc1 {[%emt 0:13:45] D37: Queen's Gambit Declined: 5 Bf4.} Bd6 {[%emt 0:05:52]} 12. Bxd6 {[%emt 0:02:50]} Qxd6 {[%emt 0:00:13]} 13. Be2 {[%emt 0:08:50] White is slightly better.} Qf6 {[%emt 0:07:25]} 14. b4 {[%emt 0:08:25] [#]} Rd8 $146 {[%emt 0:00:20]} ({Predecessor:} 14... Qb2 15. b5 Na5 16. O-O Qxa3 17. Qxd5 Be6 18. Qe4 Qe7 19. Nd4 Rfe8 20. Qf4 Rac8 21. Rxc8 Rxc8 22. Nxe6 fxe6 {1-0 (36) Milanovic,S (2370)-Markovic,Z (2351) Valjevo 2010}) 15. Nd4 {[%emt 0:10:52]} (15. b5 $5 {[%cal Rb5c6]} Ne5 16. O-O $14) 15... Bd7 {[%emt 0:00:27] The position is equal.} 16. O-O {[%emt 0:01:12]} Nxd4 {[%emt 0:01:28]} 17. Qxd4 {[%emt 0:01:17]} Qxd4 {[%emt 0:00:03]} 18. exd4 {[%emt 0:00:05]} Rac8 {[%emt 0:00:12]} 19. Rc5 {[%emt 0:01:25]} Kf8 {[%emt 0:35:10]} 20. Rxd5 {[%emt 0:05:54]} b6 {[%emt 0:05:56]} 21. Ba6 {[%emt 0:06:02]} Ba4 {[%emt 0:03:32]} 22. Rh5 {[%emt 0:06:03]} Rc3 {[%emt 0:00:21]} 23. Rxh7 {[%emt 0:00:06]} Rxd4 {[%emt 0:01:22]} 24. Re1 {[%emt 0:02:57][%cal Rh7h8] [#]} g6 {[%emt 0:03:41]} 25. Rh3 {[%emt 0:01:54]} Rxh3 {[%emt 0:04:54]} 26. gxh3 {[%emt 0:00:04]} Bc6 {[%emt 0:02:10]} 27. Bf1 {[%emt 0:06:36]} Rd5 {[%emt 0:02:51] Weighted Error Value: White=0.05 (flawless) /Black=0.06 (flawless)} 1/2-1/2

[Event "German Bundesliga 2022-23"]
[Site "Germany"]
[Date "2022.10.23"]
[Round "2.12"]
[White "Kaasen, Tor Fredrik"]
[Black "Kozul, Zdenko"]
[Result "0-1"]
[ECO "B67"]
[WhiteElo "2445"]
[BlackElo "2549"]
[Annotator "TA"]
[PlyCount "116"]
[EventDate "2022.10.21"]
[EventType "team-tourn"]
[EventCountry "GER"]
[SourceTitle "playchess.com"]
[Source "ChessBase"]
[SourceQuality "1"]
[TimeControl "40/6000+30:3000+30"]

{[%evp 16,116,41,24,42,33,26,25,19,22,16,16,41,35,41,43,44,50,40,30,25,29,24,0,0,0,0,-45,-47,-88,0,-16,2,0,73,63,114,111,92,0,0,-31,35,0,0,21,70,0,50,0,54,61,79,0,127,132,127,118,143,0,87,0,0,-12,-12,-16,-27,-26,-26,-78,-51,-104,-71,-245,-249,-241,-214,-258,-267,-265,-247,-233,-172,-187,-169,-375,-375,-342,-339,-347,-333,-447,-437,-610,-605,-1164,-1114,-1820,-1795,-1668,-1673,-1204,-1049]} 1. e4 {[%emt 0:00:08]} c5 {[%emt 0:00:11]} 2. Nf3 {[%emt 0:00:19]} d6 {[%emt 0:00:35]} 3. d4 {[%emt 0:00:23]} cxd4 {[%emt 0:00:06]} 4. Nxd4 {[%emt 0:00:07]} Nf6 {[%emt 0:00:04]} 5. Nc3 {[%emt 0:00:20]} Nc6 {[%emt 0:01:10]} 6. Bg5 {[%emt 0:00:33]} e6 {[%emt 0:00:22]} 7. Qd2 {[%emt 0:00:26]} a6 {[%emt 0:00:29]} 8. O-O-O {[%emt 0:00:25]} Bd7 {[%emt 0:00:06]} 9. Kb1 {[%emt 0:00:25]} Rc8 {[%emt 0:04:28] B67: Sicilian: Richter-Rauzer: 7...a6 8 0-0-0 Bd7, lines without 9 f4 Be7.} 10. Nxc6 {[%emt 0:08:16]} Bxc6 {[%emt 0:00:29]} 11. f3 {[%emt 0:00:40]} Be7 {[%emt 0:03:27] White has an edge.} 12. h4 {[%emt 0:04:25]} h6 {[%emt 0:03:47]} 13. Be3 {[%emt 0:03:10]} h5 {[%emt 0:01:16]} 14. Bg5 {[%emt 0:03:07]} b5 {[%emt 0:05:14]} 15. Ne2 {[%emt 0:03:14]} Qc7 {[%emt 0:02:51]} 16. Nd4 {[%emt 0:02:28]} Bd7 {[%emt 0:00:23] [#]} 17. Rc1 $146 {[%emt 0:01:40]} ({Predecessor:} 17. Be2 Qc5 18. Nb3 Qc7 19. Rc1 Qb8 20. Rhd1 Bc6 21. Nd4 Bd7 22. Qa5 Qb7 23. Nb3 {1-0 (62) Kamsky,G (2665)-Mohammad Fahad,R (2321) Chess.com INT 2021}) 17... O-O {[%emt 0:12:33]} 18. Bd3 {[%emt 0:03:32][%cal Og2g4]} e5 {[%emt 0:06:12]} 19. Ne2 {[%emt 0:11:29]} Be6 {[%emt 0:00:12]} 20. f4 {[%emt 0:04:23]} Bg4 {[%emt 0:22:30]} 21. c4 {[%emt 0:07:54]} Qb7 {[%emt 0:05:56] White must now prevent ...bxc4.} 22. Qe3 {[%emt 0:07:45]} b4 {[%emt 0:06:15]} (22... bxc4 $17 23. Bxc4 Qxe4+ 24. Qxe4 Nxe4 25. Bxe7 Rfe8 26. fxe5 Nd2+ 27. Ka1 dxe5 28. Bxf7+ Kxf7) 23. Ng3 {[%emt 0:04:54]} Rfe8 {[%emt 0:00:55]} (23... a5 {seems wilder.} 24. Nf5 Bxf5 25. exf5 b3) 24. f5 {[%emt 0:02:21]} a5 {[%emt 0:00:36]} (24... Nd7 $11) 25. Be2 $16 {[%emt 0:08:30]} Bxe2 {[%emt 0:00:49]} (25... Qa6 $14) 26. Qxe2 {[%emt 0:00:18]} g6 {[%emt 0:00:07]} 27. Qf3 {[%emt 0:02:58]} (27. fxg6 $16 fxg6 28. b3) 27... Ng4 $11 {[%emt 0:04:04]} 28. Rhd1 {[%emt 0:07:28]} Bf8 {[%emt 0:12:06]} (28... Red8 $15) 29. Nf1 {[%emt 0:03:37]} a4 {[%emt 0:01:41]} 30. Rd5 {[%emt 0:02:43]} Qa6 {[%emt 0:01:59]} (30... Rc5 $11 {deserves consideration.}) 31. Nd2 {[%emt 0:06:09]} (31. fxg6 $14 fxg6 32. Qd3) 31... Qa7 {[%emt 0:02:42]} (31... gxf5 $11 32. Qxf5 Bg7) 32. Nf1 {[%emt 0:01:52]} Qa6 {[%emt 0:04:03]} 33. Qd3 {[%emt 0:02:00]} gxf5 {[%emt 0:02:56]} 34. exf5 {[%emt 0:01:55]} ({Better is} 34. Ng3 $1 $16 {[%cal Rg3h5]}) 34... f6 {[%emt 0:02:56]} (34... e4 $11 35. Qe2 Be7) 35. Bd2 $16 {[%emt 0:00:41]} e4 {[%emt 0:00:29]} 36. Qd4 {[%emt 0:01:36]} Ne5 {[%emt 0:02:09][%cal Re5c4]} 37. Rb5 {[%emt 0:01:50]} (37. Ne3 $16) 37... Kh7 {[%emt 0:02:05]} (37... Nxc4 $11 38. Qd5+ Kh8 39. Rxc4 Re5) 38. Qxe4 {[%emt 0:02:43]} ({White should play} 38. Qd5 $1 $16) 38... Nxc4 $11 {[%emt 0:00:50]} 39. Qb7+ {[%emt 0:01:26]} Qxb7 {[%emt 0:00:07] Really sharp!} 40. Rxb7+ {[%emt 0:00:05]} Kg8 {[%emt 0:00:30]} 41. Rxb4 {[%emt 0:07:57]} Re4 $36 {[%emt 0:05:26][%mdl 2048] Black has good play.} 42. Rb5 {[%emt 0:22:33]} (42. a3 $11 {remains equal.}) 42... Rxh4 $17 {[%emt 0:12:55] Black is more active.} 43. Bc3 {[%emt 0:00:52]} ({White should try} 43. Bb4 $15) 43... Bh6 {[%emt 0:01:42]} 44. Re1 {[%emt 0:02:48] [#] Loses the game.} (44. Bxf6 {gets mated.} Na3+ $1 {[%mdl 512]} 45. bxa3 Rxc1+ 46. Kb2 Rhc4) (44. Rd1 $17 {only move.}) 44... Rh1 $1 $19 {[%emt 0:01:39][%cal Oh6d2] aiming for ...Bd2!} 45. Rd1 {[%emt 0:04:37][%cal Of1e3] [#]} Rg1 $1 {[%emt 0:03:01]} 46. g3 {[%emt 0:04:51] [#]} Na3+ $1 {[%emt 0:01:55][%mdl 512]} 47. bxa3 {[%emt 0:00:15]} Rxc3 {[%emt 0:00:04]} 48. Rb8+ {[%emt 0:03:20]} Bf8 {[%emt 0:06:17]} 49. Kb2 {[%emt 0:03:01]} Rf3 {[%emt 0:01:54][%csl LRf1,LRf5]} 50. Nd2 $2 {[%emt 0:00:09]} (50. Ne3 Rxd1 51. Nxd1) 50... Rg2 {[%emt 0:00:31]} 51. Kc1 {[%emt 0:01:51]} Rc3+ {[%emt 0:00:29]} ({And not} 51... Rfxg3 52. Ne4 Rf3 53. Nxf6+ Kf7 54. Ne4 Rxf5 55. Nxd6+ Bxd6 56. Rxd6 $19) 52. Kb1 {[%emt 0:00:05]} Rd3 {[%emt 0:00:13]} ({Weaker is} 52... Rcxg3 53. Ne4 Rg1 54. Nxg3 Rxd1+ 55. Kc2 $15) 53. Kc1 {[%emt 0:00:11]} d5 {[%emt 0:01:17] Against Ne4. Black is clearly winning.} 54. Re1 {[%emt 0:05:34][%cal Oe1e8]} Kg7 {[%emt 0:00:19]} 55. Nb1 {[%emt 0:01:04]} Bc5 {[%emt 0:00:34] Strongly threatening ...Be3+.} 56. Rb2 {[%emt 0:00:59]} Be3+ {[%emt 0:03:09]} 57. Rxe3 {[%emt 0:00:27]} Rg1+ {[%emt 0:00:06]} 58. Kc2 {[%emt 0:00:20]} Rxe3 {[%emt 0:00:06] Weighted Error Value: White=0.52/Black=0.19 (very precise)} 0-1

[Event "German Bundesliga 2022-23"]
[Site "Germany"]
[Date "2022.10.23"]
[Round "2.13"]
[White "Dautov, Rustem"]
[Black "Seyb, Alexander"]
[Result "1/2-1/2"]
[ECO "A49"]
[WhiteElo "2592"]
[BlackElo "2441"]
[Annotator "TA"]
[PlyCount "131"]
[EventDate "2022.10.21"]
[EventType "team-tourn"]
[EventCountry "GER"]
[SourceTitle "playchess.com"]
[Source "ChessBase"]
[SourceQuality "1"]
[TimeControl "40/6000+30:3000+30"]

{[%evp 20,131,10,12,30,23,24,14,33,24,27,0,9,9,0,0,12,-48,-61,-51,-50,-53,-57,-132,-112,-110,-108,-105,-105,-105,-105,-106,-105,-115,-83,-94,-97,-92,-40,-37,-22,-70,-59,-62,-70,-98,-44,-51,-54,-84,-25,-31,-22,-84,-84,-84,-84,-84,-84,-84,-84,-116,-84,-102,-84,-112,-105,-105,-84,-112,-112,-595,-595,-595,-496,-458,-84,-84,-8,-8,-8,-8,-8,-85,-8,-602,-548,-522,-443,-414,-388,-239,-123,-123,-123,-123,-102,-102,-102,-102,-102,-102,-102,-102,-11,-51,-52,-52,-33,-59,-8,-8,-8,-8]} 1. d4 {[%emt 0:00:03]} Nf6 {[%emt 0:00:06]} 2. c4 {[%emt 0:00:17]} g6 {[%emt 0:00:05]} 3. Nf3 {[%emt 0:00:22]} Bg7 {[%emt 0:00:05]} 4. g3 {[%emt 0:00:19]} c6 {[%emt 0:00:16]} 5. Bg2 {[%emt 0:01:07]} d5 {[%emt 0:00:07]} 6. O-O {[%emt 0:07:09]} O-O {[%emt 0:00:08]} 7. b3 {[%emt 0:00:06]} dxc4 {[%emt 0:00:09]} 8. bxc4 {[%emt 0:00:13]} c5 {[%emt 0:00:05]} 9. Bb2 {[%emt 0:00:05]} Qb6 {[%emt 0:00:17]} 10. Qc1 {[%emt 0:00:27]} cxd4 {[%emt 0:06:07]} 11. Nxd4 {[%emt 0:00:35]} Nc6 {[%emt 0:00:43] A49: 1 d4 Nf6 2 Nf3 g6 3 g3: Anti-King's Indian systems.} 12. Nxc6 {[%emt 0:09:35]} bxc6 {[%emt 0:00:10]} 13. Nd2 {[%emt 0:02:15]} Bf5 {[%emt 0:00:34][%cal Bc8f5,Bf5e4,Be4d3,Bd3c4][%mdl 32]} 14. Nb3 {[%emt 0:11:18][%cal Oe2e4]} Rfd8 {[%emt 0:29:51]} 15. Be5 {[%emt 0:21:12]} a5 {[%emt 0:17:28] [#]} 16. e3 $146 {[%emt 0:18:46]} ({Predecessor:} 16. c5 Qa6 17. Qb2 Qb7 18. Qa3 Be4 19. Rfd1 Rxd1+ 20. Rxd1 Bxg2 21. Kxg2 Qb4 22. Qxb4 axb4 {½-½ (30) Harikrishna,P (2758)-Svidler,P (2741) Shenzhen 2017}) 16... Be4 {[%emt 0:22:52]} 17. f3 {[%emt 0:08:43]} Bd3 {[%emt 0:00:38]} 18. Rd1 {[%emt 0:02:59] [#]} (18. c5 $11 Qb4 19. Rd1) 18... Bxc4 $1 $15 {[%emt 0:01:56] aiming for ...Rxd1+.} 19. Rxd8+ {[%emt 0:15:43]} Rxd8 {[%emt 0:00:06]} 20. Bd4 {[%emt 0:00:08]} Qb5 {[%emt 0:04:28]} 21. Nc5 {[%emt 0:05:00]} (21. Rb1 $15 Bxb3 22. Rxb3) 21... Nd5 {[%emt 0:03:38]} 22. Rb1 {[%emt 0:01:06]} Bxd4 $1 {[%emt 0:00:09]} 23. exd4 {[%emt 0:01:21] [#]} Nc3 {[%emt 0:00:05][%mdl 512]} 24. Rxb5 {[%emt 0:00:32]} Ne2+ {[%emt 0:00:04]} 25. Kf2 {[%emt 0:00:10]} Nxc1 {[%emt 0:00:05]} 26. Rxa5 {[%emt 0:00:15]} Nxa2 {[%emt 0:04:53]} 27. Ra4 {[%emt 0:01:11]} Bd5 {[%emt 0:01:08]} (27... Rxd4 28. Bf1 Bxf1 29. Rxd4 $16) 28. Ra7 {[%emt 0:01:00]} Nb4 {[%emt 0:03:16]} (28... Nc3 $17 29. Bf1 (29. Rxe7 Ra8 $17) 29... Rb8) 29. Rxe7 {[%emt 0:00:35]} Nc2 {[%emt 0:00:04]} 30. Rd7 {[%emt 0:01:36]} (30. f4 $11) 30... Rxd7 {[%emt 0:03:18]} 31. Nxd7 {[%emt 0:00:02][%mdl 4096] Endgame KBN-KBN} Kg7 {[%emt 0:02:19] Prevents Nf6.} ({But not} 31... Nxd4 32. Nf6+ Kf8 33. Nxd5 cxd5 34. f4 $11) 32. Nb6 {[%emt 0:00:17]} Be6 {[%emt 0:00:54]} ({Don't play} 32... Nxd4 $6 33. Nxd5 cxd5 34. f4 $11) (32... Kf6 $1 $17) 33. f4 {[%emt 0:00:32]} Nxd4 {[%emt 0:00:08]} 34. Na4 {[%emt 0:00:55]} Bb3 {[%emt 0:03:22]} ({Black should play} 34... Kf6 $17) 35. Nc5 $11 {[%emt 0:00:52]} Bd5 {[%emt 0:00:19]} 36. Bf1 {[%emt 0:00:41]} (36. Bxd5 $11 cxd5 37. Nd7) 36... Ne6 $17 {[%emt 0:01:20]} 37. Nxe6+ {[%emt 0:00:31]} Bxe6 {[%emt 0:03:53] KB-KB} 38. Ke3 {[%emt 0:00:07]} c5 $1 {[%emt 0:00:07]} 39. Ke4 {[%emt 0:00:37]} Kf6 {[%emt 0:00:42]} 40. Bb5 {[%emt 0:00:38]} Ke7 {[%emt 0:01:26] And now ...Kd6 would win.} 41. Ke5 {[%emt 0:51:00]} f6+ {[%emt 0:52:47]} 42. Ke4 {[%emt 0:00:16]} Kd6 {[%emt 0:00:38] Strongly threatening ...Bf5+.} 43. Kd3 {[%emt 0:00:00]} Bf5+ {[%emt 0:00:00]} 44. Kc4 {[%emt 0:00:00]} Bh3 {[%emt 0:00:00] ...Bf1+ is the strong threat.} 45. Ba4 $2 {[%emt 0:00:00][%mdl 8192]} (45. Kc3 $17) 45... Bf1+ $1 $19 {[%emt 0:00:00]} 46. Kc3 {[%emt 0:00:00]} Kd5 {[%emt 0:00:00] Hoping for ...Ke4.} 47. Bc2 {[%emt 0:00:00]} Bh3 $2 {[%emt 0:00:00]} (47... Be2 $19 {has better winning chances.} 48. Bb1 Bb5) 48. Bd1 $17 {[%emt 0:00:00]} Ke4 {[%emt 0:00:00]} (48... Bf5 $17) 49. Kc4 $11 {[%emt 0:00:00]} Ke3 {[%emt 0:00:00]} 50. Kxc5 {[%emt 0:00:00]} Kf2 {[%emt 0:00:00]} 51. Kd4 {[%emt 0:00:00]} (51. Kd6 $11) 51... Kg2 {[%emt 0:00:00]} (51... h5 $1 $17) 52. Ke3 $2 {[%emt 0:00:00][%mdl 8192]} (52. g4 $11) 52... Kxh2 {[%emt 0:00:00]} 53. Kf2 {[%emt 0:00:00]} Bg2 {[%emt 0:00:00]} 54. Bc2 {[%emt 0:00:00]} Bd5 {[%emt 0:00:00]} 55. Bd3 {[%emt 0:00:00]} f5 {[%emt 0:00:00]} (55... Be6 $19 {Threatens to win with ...Bf5.} 56. Bb5 Bg4) 56. Be2 {[%emt 0:00:00]} Be4 {[%emt 0:00:00]} 57. g4 {[%emt 0:00:00]} fxg4 {[%emt 0:00:00]} 58. Bxg4 {[%emt 0:00:00] [#]} Bf5 $1 {[%emt 0:00:00] Prevents Be6.} 59. Bf3 {[%emt 0:00:00] [#]} Kh3 $1 {[%emt 0:00:00]} 60. Be2 {[%emt 0:00:00]} Kh4 {[%emt 0:00:00]} 61. Bf3 {[%emt 0:01:11]} h6 {[%emt 0:00:00]} (61... Bd7 $17 62. Kg2 Bh3+ 63. Kh2 Bg4) 62. Be2 {[%emt 0:01:04]} Kh3 {[%emt 0:00:00]} 63. Bf3 {[%emt 0:00:38]} Bg4 {[%emt 0:00:00] ( -> ...Bxf3)} 64. Bd5 {[%emt 0:02:30]} g5 {[%emt 0:00:39]} (64... h5 $15) 65. fxg5 {[%emt 0:00:10]} hxg5 {[%emt 0:00:01]} 66. Kg1 {[%emt 0:00:08] Weighted Error Value: White=0.40/Black=0.33} 1/2-1/2